[Event "4NCL Div 1 2024-25"]
[Site "England"]
[Date "2024.11.23"]
[Round "1.1"]
[White "Golding, Alex"]
[Black "Harvey, Marcus R"]
[Result "0-1"]
[Annotator "TA"]
[ECO "B10"]
[WhiteElo "2404"]
[BlackElo "2491"]
[PlyCount "50"]
[EventDate "2024.11.23"]
[EventType "team-tourn"]
[EventCountry "ENG"]
[SourceTitle "playchess.com"]
[Source "ChessBase"]
[SourceQuality "1"]
[TimeControl "40/6000+30:3000+30"]

{[%evp 9,50,-11,15,-12,28,12,30,25,21,20,14,12,16,20,96,105,95,88,89,60,62,26,45,58,81,39,49,22,14,-48,-41,-53,-36,-55,-49,-70,-68,-62,-61,-183,-176,-485,-471]} 1. e4 {[%emt 0:10:03]} c6 {[%emt 0:14:52]} 2. Nf3 {[%emt 0:02:13]} d5 {[%emt 0:00:05]} 3. d3 {[%emt 0:00:04]} dxe4 {[%emt 0:02:29]} 4. dxe4 {[%emt 0:00:07]} Qxd1+ {[%emt 0:00:17]} 5. Kxd1 {[%emt 0:00:07]} Nf6 {[%emt 0:00:05][%cal Bg8f6,Bf6e8,Be8d6][%mdl 32]} 6. Nbd2 {[%emt 0:03:04]} g6 {[%emt 0:00:16]} 7. Ne5 {[%emt 0:00:35]} Bg7 {[%emt 0:02:33][%cal Of6e4]} 8. Nd3 $1 {[%emt 0:04:19] White has an edge.} O-O {[%emt 0:00:05]} 9. f3 {[%emt 0:00:56]} Rd8 {[%emt 0:00:15]} 10. c3 {[%emt 0:02:28]} Ne8 {[%emt 0:00:28]} 11. Kc2 {[%emt 0:02:11]} f5 {[%emt 0:03:12]} (11... b6 $11 {remains equal.}) 12. exf5 $16 Bxf5 {[%emt 0:14:05]} 13. g4 {[%emt 0:07:01]} Bc8 {[%emt 0:00:12]} 14. Ne4 {[%emt 0:02:52]} Nd6 {[%emt 0:00:15]} 15. Ndf2 {[%emt 0:08:11]} Nd7 {[%emt 0:06:50]} 16. Bg5 {[%emt 0:05:40] [#] Strongly threatening Nxd6.} Nf6 {[%emt 0:04:41]} 17. Bxf6 {[%emt 0:02:14]} Bxf6 {[%emt 0:01:01]} 18. Re1 {[%emt 0:12:52]} Bh4 {[%emt 0:01:12]} 19. Ng3 {[%emt 0:09:47]} ({Better is} 19. Re3 $11) 19... Rf8 $15 {[%emt 0:03:55]} 20. Bg2 {[%emt 0:02:22]} b6 {[%emt 0:03:00]} 21. Nd3 {[%emt 0:01:30]} c5 {[%emt 0:01:28]} 22. Re2 {[%emt 0:11:28]} Ba6 {[%emt 0:01:48]} 23. Rd1 {[%emt 0:02:01]} Rad8 {[%emt 0:00:33]} 24. Ne4 {[%emt 0:03:02] [#]} (24. Ree1 $15) 24... Nc4 $1 $19 {[%emt 0:01:52][%cal Oc4b2]} 25. Nef2 $2 {[%emt 0:03:50]} (25. Nc1) 25... Bxf2 {[%emt 0:00:35] Weighted Error Value: White=0.44/Black=0.11 (very precise) .  Mistake:       	White=3     	Black=1      Inaccurate:     	White=4     	Black=1      OK:         	White=6     	Black=9      Best:        	White=1     	Black=2      Strong:       	White=1     	Black=1} ({Not} 25... Nxb2 26. Kxb2 Bxf2 27. Rxf2 $17) 0-1

[Event "4NCL Div 1 2024-25"]
[Site "England"]
[Date "2024.11.23"]
[Round "1.2"]
[White "Speelman, Jon S"]
[Black "Willow, Jonah B"]
[Result "1/2-1/2"]
[Annotator "TA"]
[ECO "A05"]
[WhiteElo "2499"]
[BlackElo "2454"]
[PlyCount "61"]
[EventDate "2024.11.23"]
[EventType "team-tourn"]
[EventCountry "ENG"]
[SourceTitle "playchess.com"]
[Source "ChessBase"]
[SourceQuality "1"]
[TimeControl "40/6000+30:3000+30"]

{[%evp 17,61,-17,-8,-15,38,-7,0,18,33,18,21,31,26,30,30,0,-6,0,19,18,69,69,76,82,74,82,67,77,74,79,105,31,35,33,25,20,21,25,20,22,18,18,10,8,24,0]} 1. Nf3 {[%emt 1:41:00]} Nf6 {[%emt 0:10:22]} 2. g3 {[%emt 0:00:00]} c5 {[%emt 0:00:46]} 3. Bg2 {[%emt 0:00:00]} Nc6 {[%emt 0:00:48]} 4. O-O {[%emt 0:00:00]} e5 {[%emt 0:00:15]} 5. e4 {[%emt 0:00:00]} d6 {[%emt 0:00:38]} 6. Re1 {[%emt 0:00:00]} g6 {[%emt 0:06:56]} 7. c3 {[%emt 0:00:00]} Bg7 {[%emt 0:01:53]} 8. d3 {[%emt 0:00:00]} O-O {[%emt 0:03:54]} 9. Nbd2 {[%emt 0:00:00]} Re8 {[%emt 0:05:29]} 10. a3 {[%emt 0:00:00]} d5 {[%emt 0:06:42]} (10... b5 $11) 11. b4 {[%emt 0:00:00]} cxb4 12. axb4 {[%emt 0:00:00] The position is equal.} d4 {[%emt 0:05:21]} 13. cxd4 Nxd4 {[%emt 0:02:09]} 14. Bb2 {[%emt 0:00:00]} Nxf3+ 15. Nxf3 {[%emt 0:00:00]} Bg4 {[%emt 0:08:13]} 16. Ra5 {[%emt 0:00:00]} (16. Bxe5 $2 Rxe5 17. Ra4 Bxf3 18. Bxf3 b5 $19) 16... Qd6 {[%emt 0:08:18]} 17. Qb3 {[%emt 0:00:00]} (17. Bxe5 $2 {loses.} Rxe5 (17... Qxb4 18. Qa1 $16) 18. Rxe5 Bxf3 (18... Qxb4 $2 {perishes.} 19. Qb1 $18) 19. Bxf3 Qxe5 $19) 17... Bxf3 {[%emt 0:06:15]} 18. Bxf3 {[%emt 0:00:00]} b6 {[%emt 0:07:04] Repels d4} ({Black should play} 18... Bf8 $11 19. Rd1 b6) 19. Ra6 $14 {[%emt 0:00:00]} Bf8 {[%emt 0:03:32] [#]} 20. Rea1 $1 {[%emt 0:00:00]} Qxb4 {[%emt 0:01:07]} 21. Qxb4 {[%emt 0:00:00]} Bxb4 {[%emt 0:00:02]} 22. Rxa7 {[%emt 0:00:00]} Rad8 {[%emt 0:00:47]} 23. Be2 {[%emt 0:00:00]} Rc8 {[%emt 0:03:29]} 24. Bd1 {[%emt 0:00:00] Prevents Rc2} (24. Kf1 $16) 24... Bc3 {[%emt 0:00:38]} 25. Bxc3 {[%emt 0:00:00]} Rxc3 {[%emt 0:00:02]} 26. Ba4 {[%emt 0:00:00]} Rd8 {[%emt 0:18:03]} 27. Bb5 {[%emt 0:00:00]} Ne8 $1 {[%emt 0:00:43]} 28. Bxe8 {[%emt 0:00:00]} Rxe8 {[%emt 0:00:06]} 29. Rd7 {[%emt 0:00:00]} Re6 {[%emt 0:00:20]} 30. Ra2 {[%emt 0:00:00]} b5 {[%emt 0:02:35]} 31. Rb7 {[%emt 0:00:00] Weighted Error Value: White=0.13 (very precise) /Black=0.12 (very precise) .  Mistake:       	White=1     	Black=2      Inaccurate:     	White=2     	Black=1      OK:         	White=5     	Black=5      Best:        	White=2     	Black=1      Strong:       	White=1     	Black=1} 1/2-1/2

[Event "4NCL Div 1 2024-25"]
[Site "England"]
[Date "2024.11.23"]
[Round "1.3"]
[White "Balaji, Aaravamudhan"]
[Black "Murphy, Conor E"]
[Result "0-1"]
[Annotator "TA"]
[ECO "E20"]
[WhiteElo "2377"]
[BlackElo "2444"]
[PlyCount "112"]
[EventDate "2024.11.23"]
[EventType "team-tourn"]
[EventCountry "ENG"]
[SourceTitle "playchess.com"]
[Source "ChessBase"]
[SourceQuality "1"]
[TimeControl "40/6000+30:3000+30"]

{[%evp 48,112,-306,-383,-297,-490,-538,-543,-545,-543,-235,-200,-92,-248,-132,-122,0,0,0,0,0,-575,14,0,0,0,44,43,57,49,51,56,103,0,0,0,0,-13,-14,-15,-15,-15,-14,-26,-16,-18,-21,-25,-8,-8,-8,-8,-8,-8,-8,-8,-8,-8,-8,-8,-8,-8,-8,-8,-8,-29983,-29984]} 1. d4 {[%emt 0:10:08] Erigaisi,Arjun Kumar} Nf6 {[%emt 0:10:07]} 2. c4 {[%emt 0:00:09]} e6 {[%emt 0:00:07]} 3. Nc3 {[%emt 0:00:05]} Bb4 {[%emt 0:00:17]} 4. f3 {[%emt 0:00:07]} d5 {[%emt 0:00:14]} 5. a3 {[%emt 0:00:19]} Bxc3+ {[%emt 0:00:07]} 6. bxc3 {[%emt 0:00:09]} c6 {[%emt 0:00:14]} 7. e4 {[%emt 0:01:18] E20: Nimzo-Indian: 4 g3 and 4 f3.} dxe4 {[%emt 0:00:18]} 8. fxe4 {[%emt 0:00:07]} e5 {[%emt 0:00:06]} 9. Nf3 {[%emt 0:06:24]} Bg4 {[%emt 0:02:29]} 10. Qd3 {[%emt 0:07:14]} Nbd7 {[%emt 0:03:05]} 11. dxe5 {[%emt 0:06:24]} Ng8 $146 {[%emt 0:04:54]} ({Predecessor:} 11... Nh5 12. Be2 O-O 13. O-O Qb6+ 14. Rf2 Rfe8 15. Be3 Qc7 16. c5 Bxf3 17. gxf3 Nxe5 {1-0 Erigaisi,A (2689)-Parligras,M (2576) Olympiad-44 Chennai 2022 (5.3)}) 12. Rb1 {[%emt 0:09:12]} Ne7 13. Bg5 {[%emt 0:21:43]} h6 {[%emt 0:26:21]} 14. Bh4 {[%emt 0:06:46]} g5 {[%emt 0:07:36]} 15. Bf2 {[%emt 0:03:46]} Ng6 {[%emt 0:02:21]} 16. Rxb7 {[%emt 0:05:56]} Rb8 {[%emt 0:10:23]} 17. Qb1 {[%emt 0:17:33]} Rxb7 {[%emt 0:08:59]} 18. Qxb7 {[%emt 0:00:03]} O-O {[%emt 0:00:25]} 19. Bd4 {[%emt 0:04:42]} c5 {[%emt 0:03:49]} 20. Be3 {[%emt 0:03:07]} Qa5 {[%emt 0:08:50]} 21. Kf2 {[%emt 0:01:20]} Rb8 {[%emt 0:04:46]} 22. Qd5 {[%emt 0:00:15]} Be6 {[%emt 0:01:20]} 23. Qd6 {[%emt 0:02:44]} Rb6 {[%emt 0:03:51]} 24. Qd2 {[%emt 0:00:59]} Qxa3 {[%emt 0:00:24]} (24... Ngxe5 25. h4 Ng4+ (25... Qxa3 $2 26. Kg3 $19) 26. Kg3 $19) 25. Kg3 {[%emt 0:01:04]} Rb3 {[%emt 0:04:15]} (25... Ndxe5 26. Nxe5 Nxe5 27. h4 $11) 26. h4 $2 {[%emt 0:01:11]} (26. Be2 {was necessary.} Rb2 (26... Ndxe5 $2 27. Nxe5 Nxe5 28. Rc1 $19) (26... Rxc3 $2 27. Kf2 $19) (26... Ngxe5 $2 27. Nxe5 Nxe5 28. Rc1 $19) 27. Qd1) 26... Rxc3 $19 {[%emt 0:03:36]} (26... Ndxe5 $2 27. Qd8+ Nf8 28. hxg5 $18 (28. Nxe5 Rxc3 29. Bd3 Rxd3 $18) (28. Nxe5 Qa1 $18)) 27. Kf2 {[%emt 0:00:12]} Qb3 {[%emt 0:01:51]} 28. Ne1 {[%emt 0:00:41]} Ndxe5 {[%emt 0:00:46]} (28... Nxh4 29. Bxg5 hxg5 30. Rxh4 gxh4 31. Qg5+ Kh8 32. Qxh4+ Kg7 33. Qg5+ Kh8 34. Qh5+ Kg7 35. Qg5+ Kh7 36. Qh5+ Kg7 37. Qg5+ $11) (28... Ngxe5 $142 29. Bxg5 Ng4+ (29... hxg5 $2 30. Qxg5+ Kf8 31. Qd8+ Kg7 32. Qg5+ Ng6 33. h5 $19) (29... Bxc4 30. Bxh6 Ng4+ 31. Kg1 $17) 30. Kg1 hxg5 31. hxg5 Rg3) 29. Be2 {[%emt 0:00:25]} gxh4 {[%emt 0:01:14]} (29... Nxh4 30. Qd8+ Kg7 31. Bxc5 $15) (29... Rxe3 $19 30. Qxe3 Qb2 (30... Bxc4 31. Qxb3 Bxb3 32. hxg5 $14) (30... Qxe3+ 31. Kxe3 Nf4 32. hxg5 $14)) 30. Bxc5 $2 {[%emt 0:00:35]} (30. Bxh6 $17 {is the only way for White.} Kh7 (30... Nxc4 31. Qd8+ Kh7 32. Qf6) 31. Bf4) 30... Rxc4 {[%emt 0:01:45]} ({Black should play} 30... Nxc4 $19 31. Qxh6 Qb8) 31. Bxc4 $17 {[%emt 0:00:45]} Qg3+ {[%emt 0:00:35]} (31... Bxc4 $6 32. Bd4 $11 (32. Rh3 Qb8 $11)) (31... Nxc4 $17 32. Qd3 Qa2+ 33. Kg1 Nce5) 32. Kg1 $11 {[%emt 0:00:02]} Bxc4 {[%emt 0:00:30]} 33. Rh3 {[%emt 0:01:01]} Qg4 {[%emt 0:00:04]} 34. Qxh6 $2 {[%emt 0:00:19][%mdl 8192] [#]} (34. Bd4 $11 {and White has nothing to worry.}) 34... Qxe4 $2 {[%emt 0:00:29]} (34... Qe2 $1 $19 {[%cal Re2e1]} 35. Qg5 Qxe1+ 36. Kh2 Be2 (36... Qxe4 $2 37. Qd2 $19) 37. Rxh4 Qxh4+ 38. Qxh4 Nxh4) 35. Qe3 {[%emt 0:00:26]} Qf5 {[%emt 0:00:24]} 36. Qf2 {[%emt 0:00:31]} (36. Bxa7 $2 {gets mated.} Qf1+ 37. Kh2 Ng4#) 36... Qh5 {[%emt 0:01:14]} 37. Bd4 {[%emt 0:00:33]} Ng4 {[%emt 0:00:28]} 38. Qb2 {[%emt 0:00:34]} Qf5 {[%emt 0:00:30]} 39. Nf3 {[%emt 0:00:25]} (39. Bxa7 $2 Qf1#) 39... Bb5 {[%emt 0:00:25] [#]} (39... f6 $14 {is more appropriate.}) 40. Rh1 {[%emt 0:00:44]} (40. Nxh4 $2 Qf1#) ({Much worse is} 40. Bxa7 $6 Nf4 41. Rxh4 (41. Nxh4 $2 {is a self mate.} Nxh3+ 42. Kh1 Qf1+) 41... Ne2+ 42. Kh1 Ng3+ 43. Kg1 Ne2+ 44. Kh1 Ng3+ 45. Kg1 Ne2+ $11) (40. Kh1 $1 $16) 40... Qd3 $11 {[%emt 0:00:44]} 41. Qc1 {[%emt 0:28:27]} Bc6 {[%emt 0:27:33]} 42. Rxh4 {[%emt 0:09:35]} Nxh4 {[%emt 0:04:17]} 43. Qg5+ {[%emt 0:00:24]} Ng6 {[%emt 0:00:42]} 44. Qxg4 {[%emt 0:00:42]} Qd1+ {[%emt 0:02:07]} 45. Kh2 {[%emt 0:03:22]} Bxf3 {[%emt 0:01:00]} 46. gxf3 {[%emt 0:02:16]} Qd2+ {[%emt 0:00:31]} 47. Kg1 {[%emt 0:01:00]} a5 {[%emt 0:03:39]} 48. Qc8+ {[%emt 0:02:10]} Kh7 {[%emt 0:00:51]} 49. Qh3+ {[%emt 0:00:31]} Qh6 {[%emt 0:00:26]} 50. Qd7 {[%emt 0:00:50]} (50. Qxh6+ {simplifies} Kxh6 51. Kf2 Kg5 52. Ke3) 50... Qf4 {[%emt 0:03:20]} 51. Qh3+ {[%emt 0:05:16]} Qh4 {[%emt 0:00:28]} (51... Kg8 {seems wilder.} 52. Qg4 a4 53. Qxf4 Nxf4 54. Kf2 a3) 52. Qxh4+ {[%emt 0:01:20]} Nxh4 {[%emt 0:00:02]} 53. Kf2 {[%emt 0:00:06]} Kg6 {[%emt 0:02:44]} 54. Bc5 $1 {[%emt 0:00:56]} Kf5 {[%emt 0:00:27]} 55. Ke3 {[%emt 0:00:30]} Ke5 {[%emt 0:00:33]} 56. Be7 $2 {[%emt 0:00:25][%mdl 8192]} (56. Kd3 $11) 56... Nf5+ {[%emt 0:09:57]} 0-1

[Event "4NCL Div 1 2024-25"]
[Site "England"]
[Date "2024.11.23"]
[Round "1.4"]
[White "Wadsworth, Matthew J"]
[Black "Czopor, Maciej"]
[Result "1/2-1/2"]
[Annotator "RC"]
[ECO "A38"]
[WhiteElo "2461"]
[BlackElo "2383"]
[PlyCount "117"]
[EventDate "2024.11.23"]
[EventType "team-tourn"]
[EventCountry "ENG"]
[SourceTitle "playchess.com"]
[Source "ChessBase"]
[SourceQuality "1"]
[TimeControl "40/6000+30:3000+30"]

1. d4 {[%emt 0:10:02]} Nf6 {[%emt 0:10:09]} 2. c4 {[%emt 0:00:05]} g6 {[%emt 0:00:03]} 3. g3 {[%emt 0:00:47]} Bg7 {[%emt 0:00:07]} 4. Bg2 {[%emt 0:00:25]} O-O {[%emt 0:00:05]} 5. Nc3 {[%emt 0:01:12]} c5 {[%emt 0:00:26]} 6. Nf3 {[%emt 0:02:00]} cxd4 {[%emt 0:00:05]} 7. Nxd4 {[%emt 0:03:15]} Nc6 {[%emt 0:00:10]} 8. O-O {[%emt 0:00:32]} Qa5 {[%emt 0:00:05]} 9. Nc2 {[%emt 0:03:17]} d6 {[%emt 0:00:05]} 10. Bd2 {[%emt 0:01:26]} Qh5 {[%emt 0:00:05]} 11. e4 {[%emt 0:01:02]} Bg4 {[%emt 0:00:04]} 12. f3 {[%emt 0:02:56]} Bh3 {[%emt 0:00:05]} 13. Ne3 {[%emt 0:06:17]} Bxg2 {[%emt 0:06:39]} 14. Kxg2 {[%emt 0:00:24]} Qa5 {[%emt 0:14:10]} 15. Ncd5 {[%emt 0:12:55]} Qd8 {[%emt 0:00:06]} 16. Rc1 {[%emt 0:02:00]} Rc8 {[%emt 0:00:45]} 17. Bc3 {[%emt 0:02:28]} Nxd5 18. exd5 {[%emt 0:00:58]} Ne5 19. Qe2 {[%emt 0:07:49]} Re8 {[%emt 0:12:51]} 20. f4 {[%emt 0:05:19]} Nd7 {[%emt 0:00:04]} 21. f5 {[%emt 0:03:14]} Ne5 {[%emt 0:02:33]} 22. Ng4 {[%emt 0:01:39]} Nxg4 {[%emt 0:09:31]} 23. Qxg4 {[%emt 0:00:54]} Bxc3 {[%emt 0:00:44]} 24. Rxc3 {[%emt 0:00:49]} Qd7 {[%emt 0:01:24]} 25. Qh4 {[%emt 0:03:18]} gxf5 {[%emt 0:12:32]} 26. g4 {[%emt 0:11:54]} f6 {[%emt 0:03:12]} 27. Rxf5 {[%emt 0:12:02]} Rf8 {[%emt 0:00:36]} 28. Rf4 {[%emt 0:04:18]} Rf7 {[%emt 0:01:29]} 29. Rg3 {[%emt 0:00:14]} Rg7 {[%emt 0:05:55]} 30. g5 {[%emt 0:00:22]} f5 {[%emt 0:00:04]} 31. Rgf3 {[%emt 0:03:46]} Rf8 {[%emt 0:01:36]} 32. Qg3 {[%emt 0:01:55]} h6 {[%emt 0:03:32]} 33. h4 {[%emt 0:00:39]} e5 {[%emt 0:00:54]} 34. dxe6 {[%emt 0:00:50]} Qxe6 {[%emt 0:00:02]} 35. Re3 {[%emt 0:01:42]} Qg6 {[%emt 0:00:10]} 36. Kf2 {[%emt 0:01:25]} hxg5 {[%emt 0:00:19]} 37. hxg5 {[%emt 0:00:06]} Qxg5 {[%emt 0:00:39]} 38. Qxg5 {[%emt 0:01:05]} Rxg5 {[%emt 0:00:04]} 39. Re6 {[%emt 0:00:32]} Rh5 {[%emt 0:01:07]} 40. b3 {[%emt 0:02:45]} Rh2+ {[%emt 0:01:07]} 41. Kg3 {[%emt 0:25:18]} Rxa2 {[%emt 0:20:58]} 42. Rxd6 {[%emt 0:01:41]} Rb2 {[%emt 0:01:02]} 43. Rf3 {[%emt 0:03:18]} Rf7 {[%emt 0:00:55]} 44. Kf4 {[%emt 0:02:18]} Re2 {[%emt 0:01:41]} 45. Re3 {[%emt 0:05:01]} Rf2+ {[%emt 0:02:14]} 46. Rf3 {[%emt 0:00:09]} Rxf3+ {[%emt 0:07:59]} 47. Kxf3 {[%emt 0:00:07]} Kf8 {[%emt 0:00:03]} 48. Kf4 {[%emt 0:00:40]} Ke7 {[%emt 0:00:07]} 49. Rd5 {[%emt 0:00:31]} Ke6 {[%emt 0:00:16]} 50. b4 {[%emt 0:01:14]} a6 {[%emt 0:06:20]} 51. Re5+ {[%emt 0:01:08]} Kd6 {[%emt 0:00:04]} 52. Rxf5 {[%emt 0:01:04]} Rxf5+ {[%emt 0:00:09]} 53. Kxf5 {[%emt 0:00:07]} a5 {[%emt 0:00:02]} 54. bxa5 {[%emt 0:00:09]} Kc5 {[%emt 0:00:03]} 55. Ke6 {[%emt 0:00:10]} Kxc4 {[%emt 0:00:03]} 56. Kd6 {[%emt 0:00:07]} Kb5 {[%emt 0:00:04]} 57. Kc7 {[%emt 0:00:09]} Ka6 {[%emt 0:00:03]} 58. Kb8 {[%emt 0:00:14]} Kxa5 {[%emt 0:00:05]} 59. Kxb7 {[%emt 0:00:06]} 1/2-1/2

[Event "4NCL Div 1 2024-25"]
[Site "England"]
[Date "2024.11.23"]
[Round "1.6"]
[White "Zhou, Yang-Fan"]
[Black "Derakhshani, Borna"]
[Result "1/2-1/2"]
[Annotator "TA"]
[ECO "A06"]
[WhiteElo "2418"]
[BlackElo "2355"]
[PlyCount "48"]
[EventDate "2024.11.23"]
[EventType "team-tourn"]
[EventCountry "ENG"]
[SourceTitle "playchess.com"]
[Source "ChessBase"]
[SourceQuality "1"]
[TimeControl "40/6000+30:3000+30"]

{[%evp 9,48,3,26,0,16,-12,37,34,35,41,32,36,36,18,21,20,63,70,80,80,72,68,79,68,79,51,116,127,113,136,175,58,79,0,0,0,0,0,0,0,0]} 1. b3 {[%emt 0:11:31]} d5 {[%emt 0:11:53]} 2. Bb2 {[%emt 0:00:27]} Nf6 {[%emt 0:00:16]} 3. Nf3 {[%emt 0:01:11]} c6 {[%emt 0:00:47]} 4. d3 {[%emt 0:03:10]} a5 {[%emt 0:03:07]} 5. a3 {[%emt 0:05:39]} Bf5 {[%emt 0:13:38]} 6. Nh4 {[%emt 0:09:52]} Bd7 {[%emt 0:08:18]} 7. g3 {[%emt 0:04:18]} Qc8 {[%emt 0:05:25]} (7... a4 $11 {is more appropriate.}) 8. Bg2 $14 {[%emt 0:05:54] White is slightly better.} Bh3 {[%emt 0:03:05]} 9. O-O {[%emt 0:01:04]} Bxg2 {[%emt 0:00:06]} 10. Kxg2 {[%emt 0:00:15]} e6 {[%emt 0:13:13] Prevents e4} 11. Nd2 {[%emt 0:03:06]} Be7 {[%emt 0:07:51]} 12. e4 {[%emt 0:03:32]} c5 {[%emt 0:02:22]} 13. exd5 {[%emt 0:01:35]} Nxd5 {[%emt 0:04:00] [#]} 14. Qg4 $1 {[%emt 0:03:31]} (14. Bxg7 Rg8 15. Be5 (15. Qg4 $2 Qc6 $19) 15... Bxh4 $19) 14... Qc6 {[%emt 0:04:08] Threatens to win with ...Ne3+.} 15. Nhf3 {[%emt 0:05:25]} (15. Qxg7 $2 Nf4+ 16. Kg1 Nh3#) 15... Rg8 {[%emt 0:03:21]} (15... Bf6 $2 16. Bxf6 gxf6 17. Qg7 $18) 16. Kg1 {[%emt 0:11:09] White is more active.} (16. Bxg7 $2 {loses.} Nf6 (16... Bf6 $2 17. Ne4 $19) 17. Qf4 (17. Qg5 $2 Ne4 $19) 17... Rxg7 $19) 16... Nd7 {[%emt 0:00:07] Prevents Ne5} 17. Qe4 {[%emt 0:01:08]} (17. Bxg7 $2 {is the wrong capture.} Bf6 (17... h5 $2 18. Qxh5 Rxg7 19. Qh8+ Bf8 20. Qh4 $19) 18. c4 Nc3 $19 (18... Rxg7 19. cxd5 Qxd5 20. Qf4 $17)) 17... Bf6 {[%emt 0:03:52]} (17... a4 $14) 18. Qxh7 $16 {[%emt 0:09:24]} O-O-O {[%emt 0:00:28]} 19. Bxf6 {[%emt 0:00:08]} gxf6 {[%emt 0:00:30]} 20. Qh4 {[%emt 0:11:31]} ({White should play} 20. Qxf7 $18 {Hoping for Qh7.} Rdf8 21. Qh7) 20... f5 {[%emt 0:00:41]} 21. Ng5 {[%emt 0:04:12]} ({White should try} 21. Qa4 $16) 21... f6 $11 {[%emt 0:02:47] The position is equal.} 22. Ngf3 {[%emt 0:03:16]} Rg4 {[%emt 0:07:17]} 23. Qh6 {[%emt 0:00:04][%cal Ob3b4]} Rdg8 {[%emt 0:01:15]} 24. Rfe1 {[%emt 0:02:19]} Nf4 {[%emt 0:01:31] Weighted Error Value: White=0.17 (very precise) /Black=0.15 (very precise) .  Mistake:       	White=2     	Black=2      Inaccurate:     	White=2     	Black=1      OK:         	White=8     	Black=8      Best:        	White=1     	---        Strong:       	White=1     	---} 1/2-1/2

[Event "4NCL Div 1 2024-25"]
[Site "England"]
[Date "2024.11.23"]
[Round "1.7"]
[White "Stoyanov, Viktor"]
[Black "Haydon, David L"]
[Result "0-1"]
[Annotator "RC"]
[ECO "E12"]
[WhiteElo "2242"]
[BlackElo "2294"]
[PlyCount "120"]
[EventDate "2024.11.23"]
[EventType "team-tourn"]
[EventCountry "ENG"]
[SourceTitle "playchess.com"]
[Source "ChessBase"]
[SourceQuality "1"]
[TimeControl "40/6000+30:3000+30"]

1. d4 {[%emt 0:10:07]} Nf6 {[%emt 0:10:10]} 2. c4 {[%emt 0:00:21]} e6 {[%emt 0:00:17]} 3. Nf3 {[%emt 0:00:16]} b6 {[%emt 0:00:33]} 4. a3 {[%emt 0:03:35]} Bb7 {[%emt 0:03:01]} 5. Nc3 {[%emt 0:00:36]} d5 {[%emt 0:02:10]} 6. cxd5 {[%emt 0:00:45]} Nxd5 {[%emt 0:01:54]} 7. e3 {[%emt 0:01:18]} Nd7 {[%emt 0:04:57]} 8. Bd3 {[%emt 0:03:20]} c5 {[%emt 0:05:31]} 9. Nxd5 {[%emt 0:17:35]} Bxd5 {[%emt 0:06:32]} 10. e4 {[%emt 0:10:35]} Bb7 11. d5 {[%emt 0:19:59]} exd5 {[%emt 0:05:27]} 12. exd5 {[%emt 0:00:30]} Bd6 {[%emt 0:01:24]} 13. Bg5 {[%emt 0:05:12]} Qc7 {[%emt 0:07:57]} 14. O-O {[%emt 0:12:44]} O-O {[%emt 0:01:59]} 15. Bc2 {[%emt 0:02:31]} Ne5 {[%emt 0:01:17]} 16. h3 {[%emt 0:02:33]} Nxf3+ {[%emt 0:03:43]} 17. Qxf3 {[%emt 0:00:09]} Be5 {[%emt 0:00:20]} 18. Rab1 {[%emt 0:02:29]} Qd6 {[%emt 0:05:04]} 19. Rfe1 {[%emt 0:01:59]} Rfe8 {[%emt 0:02:14]} 20. Be4 {[%emt 0:05:03]} g6 {[%emt 0:02:33]} 21. Qd3 {[%emt 0:03:02]} Bd4 {[%emt 0:11:51]} 22. Be3 {[%emt 0:01:28]} Bg7 {[%emt 0:01:00]} 23. b3 {[%emt 0:01:12]} Rad8 {[%emt 0:01:47]} 24. Rbd1 {[%emt 0:00:17]} Re7 {[%emt 0:04:03]} 25. Bf3 {[%emt 0:01:06]} Rde8 {[%emt 0:04:58]} 26. Bd2 {[%emt 0:00:26]} Bd4 {[%emt 0:01:23]} 27. Rxe7 {[%emt 0:00:20]} Rxe7 {[%emt 0:00:25]} 28. Bg5 {[%emt 0:03:57]} Rd7 {[%emt 0:00:56]} 29. Re1 {[%emt 0:00:45]} Be5 {[%emt 0:07:21]} 30. Qe3 {[%emt 0:00:28]} f6 {[%emt 0:00:18]} 31. Bh6 {[%emt 0:00:21]} Bxd5 {[%emt 0:00:45]} 32. Rd1 {[%emt 0:00:34]} Qe6 {[%emt 0:00:21]} 33. Bg4 {[%emt 0:00:39]} f5 {[%emt 0:00:27]} 34. Bf3 {[%emt 0:00:36]} Kf7 {[%emt 0:00:45]} 35. Bxd5 {[%emt 0:00:32]} Rxd5 {[%emt 0:00:19]} 36. Re1 {[%emt 0:00:13]} Qd7 {[%emt 0:00:53]} 37. Qe2 {[%emt 0:00:26]} Bc3 {[%emt 0:01:28]} 38. Rc1 {[%emt 0:00:20]} Bd4 {[%emt 0:00:14]} 39. Qf3 {[%emt 0:00:28]} Re5 {[%emt 0:00:41]} 40. Bf4 {[%emt 0:00:42]} Re4 {[%emt 0:00:40]} 41. Bd2 {[%emt 0:23:17]} Qe6 {[%emt 0:26:07]} 42. Kf1 {[%emt 0:00:52]} Qe5 {[%emt 0:03:00]} 43. g3 {[%emt 0:01:47]} h5 {[%emt 0:00:56]} 44. a4 {[%emt 0:06:12]} Qd5 {[%emt 0:00:48]} 45. Bf4 {[%emt 0:05:34]} Re1+ {[%emt 0:05:11]} 46. Kg2 {[%emt 0:00:02]} Qxf3+ {[%emt 0:00:08]} 47. Kxf3 {[%emt 0:00:02]} Rxc1 {[%emt 0:00:09]} 48. Bxc1 {[%emt 0:00:02]} Ke6 {[%emt 0:00:17]} 49. g4 {[%emt 0:03:03]} fxg4+ {[%emt 0:00:59]} 50. hxg4 {[%emt 0:00:01]} hxg4+ {[%emt 0:00:12]} 51. Kxg4 {[%emt 0:00:11]} Bxf2 {[%emt 0:00:09]} 52. Kg5 {[%emt 0:00:13]} Kd5 {[%emt 0:01:21]} 53. Kxg6 {[%emt 0:00:15]} c4 {[%emt 0:00:18]} 54. bxc4+ {[%emt 0:00:21]} Kxc4 {[%emt 0:00:10]} 55. Bd2 {[%emt 0:00:15]} Bd4 {[%emt 0:00:22]} 56. Kf5 {[%emt 0:00:19]} Bc3 {[%emt 0:00:13]} 57. Bf4 {[%emt 0:00:08]} Kb3 {[%emt 0:00:13]} 58. Bb8 {[%emt 0:00:17]} a5 {[%emt 0:02:18]} 59. Bc7 {[%emt 0:00:11]} Bd4 {[%emt 0:00:08]} 60. Ke4 {[%emt 0:00:06]} Bg1 {[%emt 0:00:12]} 0-1